bitfinex/quotes_SOLUSD_20251018
["timestamp","ask_amount","ask_price","bid_price","bid_amount"]
[1760821909991,102.1,186.53,186.5,22.94961626]
[1760821910312,5.6,186.52,186.5,22.94961626]
[1760821911291,5.6,186.52,186.51,3.46286024]
[1760821911687,5.6,186.52,186.5,22.22961626]
[1760821911909,5.6,186.52,186.5,22.94961626]
[1760821912136,5.6,186.52,186.51,3.46286024]
[1760821912299,5.6,186.52,186.5,18.76675602]
[1760821912504,5.6,186.52,186.5,22.22961626]
[1760821913221,62.7,186.51,186.5,22.22961626]
[1760821913394,61.3595893,186.51,186.5,22.22961626]
[1760821915917,61.3595893,186.51,186.5,22.94961626]
[1760821916323,5.6,186.52,186.5,22.94961626]
[1760821916626,5.6,186.52,186.51,4.18286024]
[1760821917399,5.6,186.52,186.51,9.54450304]
[1760821920119,5.6,186.52,186.51,36.68450304]
[1760821921525,5.6,186.52,186.51,35.96450304]
[1760821924424,6.27,186.52,186.51,5.3616428]
[1760821925805,6.27,186.52,186.5,13.40482573]
[1760821926005,0.67,186.51,186.5,13.40482573]
[1760821926822,0.68,186.51,186.5,13.40482573]
[1760821937517,0.68,186.51,186.48,18.76876876]
[1760821938221,0.68,186.51,186.48,22.231629]
[1760821938525,5.6,186.52,186.49,3.46286024]
[1760821938713,6.27,186.52,186.49,3.46286024]
[1760821939108,6.27,186.52,186.5,5.36193029]
[1760821941114,5.6,186.52,186.5,5.36193029]
[1760821941422,0.67,186.51,186.5,5.36193029]
[1760821942223,0.67,186.51,186.49,5.36221781]
[1760821945028,5.6,186.52,186.49,5.36221781]
[1760821945029,63.37,186.5,186.49,5.36221781]
[1760821946730,63.37,186.5,186.48,13.4062634]
[1760821946922,0.67,186.49,186.48,13.4062634]
[1760821948329,0.67,186.49,186.46,18.77078193]
[1760821950016,0.67,186.49,186.46,22.23364217]
[1760821951638,4.13286024,186.48,186.45,5.36327217]
[1760821951820,4.13286024,186.47,186.41,3.46286024]
[1760821952132,63.37,186.46,186.41,3.46286024]
[1760821952318,22.88,186.43,186.42,5.3642313]
[1760821952932,23.55,186.45,186.42,5.3642313]
[1760821955652,0.67,186.44,186.41,18.77577146]
[1760821955819,62.7,186.42,186.41,5.36451907]
[1760821958543,62.7,186.42,186.4,8.8276671]
[1760821960840,62.7,186.41,186.4,8.8276671]
[1760821966562,0.67,186.43,186.4,22.23968426]
[1760821966741,0.68,186.42,186.4,22.23968426]
[1760821968335,0.68,186.42,186.4,16.8748774]
[1760821968535,0.68,186.41,186.39,5.36509469]
[1760821968735,0.68,186.4,186.39,5.36509469]
[1760821970437,0.68,186.42,186.38,22.24164539]
[1760821970746,102.78,186.41,186.38,22.24164539]
[1760821970924,102.1,186.41,186.38,22.24164539]
[1760821971126,0.68,186.4,186.38,22.24164539]
[1760821971844,102.78,186.41,186.38,22.24164539]
[1760821972033,5.6,186.39,186.38,22.24164539]
[1760821978347,102.78,186.41,186.38,22.24164539]
[1760821978348,102.1,186.41,186.38,50.02164539]
[1760821978652,102.1,186.41,186.4,3.46286024]
[1760821979136,102.78,186.41,186.38,45.87878515]
[1760821979336,0.68,186.4,186.38,45.87878515]
[1760821979543,63.38,186.4,186.38,45.87878515]
[1760821979747,63.38,186.39,186.38,18.77878515]
[1760821984248,0.68,186.39,186.38,18.77878515]
[1760821985438,0.68,186.39,186.38,22.24164539]
[1760821985633,102.1,186.41,186.38,22.92164539]
[1760821985852,102.1,186.41,186.4,3.46286024]
[1760821986768,102.1,186.41,186.4,4.17286024]
[1760821987442,102.1,186.41,186.4,8.8276671]
[1760821988144,102.1,186.41,186.39,30.56286024]
[1760821988349,102.1,186.41,186.4,5.36480686]
[1760821988967,102.76,186.41,186.4,5.36480686]
[1760821989543,102.76,186.41,186.38,18.77881052]
[1760821989858,0.66,186.4,186.38,18.77881052]
[1760821990437,0.66,186.39,186.38,18.77881052]
[1760821991571,0.66,186.39,186.38,13.41342797]
[1760821992949,0.66,186.39,186.37,5.36567044]
[1760821993161,63.36,186.38,186.37,5.36567044]
[1760821993363,0.66,186.38,186.37,5.36567044]
[1760821993562,0.66,186.38,186.36,5.36595836]
[1760821995449,5.6,186.37,186.36,5.36595836]
[1760821995649,5.6,186.37,186.36,8.8288186]
[1760821998065,68.3,186.37,186.36,5.36595836]
[1760821998273,68.96,186.37,186.36,5.36595836]
[1760821998955,3.46286024,186.47,186.36,49.7635063]
[1760821999160,0.66,186.41,186.39,3.46286024]
[1760821999355,0.66,186.44,186.4,3.46286024]
[1760821999555,3.57008638,186.46,186.41,3.46286024]
[1760821999762,0.66,186.45,186.42,3.46286024]
[1760821999949,0.66,186.44,186.42,3.46286024]
[1760822000152,0.66,186.44,186.43,5.36394357]
[1760822000352,10.87647521,186.5,186.43,5.36394357]
[1760822000353,3.46286024,186.48,186.43,5.36394357]
[1760822000548,3.57064856,186.5,186.45,3.46286024]
[1760822000867,3.57064856,186.5,186.43,18.77380249]
[1760822000868,0.66,186.47,186.44,3.46286024]
[1760822001070,0.66,186.46,186.43,22.23666273]
[1760822001257,0.66,186.45,186.43,22.23666273]
[1760822001450,0.66,186.45,186.43,18.77380249]
[1760822002367,3.46286024,186.48,186.43,18.77380249]
[1760822002368,0.66,186.44,186.43,18.77380249]
[1760822003075,0.66,186.47,186.43,16.87271916]
[1760822003263,0.66,186.46,186.44,3.46286024]
[1760822003469,0.66,186.47,186.44,3.46286024]
[1760822003663,0.66,186.47,186.45,3.46286024]
[1760822004880,0.66,186.47,186.46,5.36308055]
[1760822009275,4.12286024,186.47,186.44,5.36344173]
[1760822009479,0.66,186.46,186.44,5.36344173]
[1760822009860,0.66,186.45,186.44,5.36344173]
[1760822010062,0.66,186.45,186.43,13.40985892]
[1760822010280,0.66,186.44,186.43,13.40985892]
[1760822012059,0.66,186.44,186.42,5.3642313]
[1760822012973,0.66,186.46,186.42,18.77480956]
[1760822013189,0.66,186.45,186.42,18.77480956]
[1760822013482,3.46286024,186.47,186.42,18.77480956]
[1760822013779,0.66,186.46,186.42,18.77480956]
[1760822013978,0.66,186.45,186.42,18.77480956]
[1760822014278,0.66,186.44,186.42,18.77480956]
[1760822015070,168.26286024,186.46,186.42,18.77480956]
[1760822015386,0.66,186.45,186.42,18.77480956]
[1760822019487,0.66,186.45,186.42,19.46480956]
[1760822019869,62.7,186.44,186.42,19.46480956]
[1760822020572,62.7,186.44,186.42,22.9276698]
[1760822020960,62.7,186.44,186.42,22.2376698]
[1760822022685,62.7,186.44,186.42,18.77480956]
[1760822023591,63.37,186.44,186.42,18.77480956]
[1760822024187,62.7,186.44,186.42,18.77480956]
[1760822024789,62.7,186.44,186.42,3.46286024]
[1760822025192,62.7,186.44,186.4,18.77682402]
[1760822025193,0.67,186.43,186.4,18.77682402]
[1760822025373,0.67,186.42,186.4,18.77682402]
[1760822025575,62.7,186.41,186.4,18.77682402]
[1760822027088,62.7,186.41,186.4,13.41201716]
[1760822028590,0.67,186.42,186.4,13.41201716]
[1760822030895,62.7,186.41,186.39,5.36509469]
[1760822031085,66.83286024,186.4,186.39,5.36509469]
[1760822031496,63.37,186.4,186.39,5.36509469]
[1760822032187,63.37,186.4,186.37,13.41357521]
[1760822032694,0.67,186.39,186.37,13.41357521]
[1760822033493,62.7,186.4,186.37,13.41357521]
[1760822034294,62.7,186.4,186.37,18.77924565]
[1760822034791,62.7,186.39,186.37,18.77924565]
[1760822035399,62.7,186.39,186.37,14.13357521]
[1760822036177,62.7,186.39,186.37,13.41357521]
[1760822036594,63.37,186.39,186.37,13.41357521]
[1760822038391,63.37,186.39,186.37,18.77924565]
[1760822038893,62.7,186.39,186.37,18.77924565]
[1760822039102,62.7,186.39,186.37,19.49924565]
[1760822040281,63.37,186.39,186.37,18.77924565]
[1760822040494,63.37,186.38,186.36,5.36595836]
[1760822040699,62.7,186.38,186.36,5.36595836]
[1760822040901,62.7,186.38,186.36,6.08595836]
[1760822041306,63.37,186.38,186.36,5.36595836]
[1760822041999,0.67,186.37,186.36,5.36595836]
[1760822043613,0.67,186.37,186.36,18.78085426]
[1760822044114,102.1,186.41,186.36,18.78085426]
[1760822044115,105.56286024,186.41,186.36,18.78085426]
[1760822044287,0.67,186.37,186.36,18.78085426]
[1760822045003,0.67,186.39,186.36,18.78085426]
[1760822045181,0.67,186.38,186.36,18.78085426]
[1760822045385,0.67,186.37,186.36,5.36595836]
[1760822046189,4.13286024,186.37,186.32,22.88]
[1760822046383,0.72,186.36,186.32,22.88]
[1760822046588,0.72,186.35,186.32,22.88]
[1760822046884,3.46286024,186.36,186.32,22.88]
[1760822046885,0.72,186.34,186.32,22.88]
[1760822047190,0.72,186.34,186.32,5.36711034]
[1760822047390,0.72,186.33,186.32,5.36711034]
[1760822048102,0.72,186.35,186.32,5.36711034]
[1760822048410,0.72,186.34,186.32,5.36711034]
[1760822048613,0.72,186.33,186.32,18.7848862]
[1760822048817,0.72,186.33,186.32,5.36711034]
[1760822049413,0.72,186.33,186.31,5.46737969]
[1760822049615,105.56286024,186.39,186.31,5.46737969]
[1760822049616,0.72,186.32,186.31,5.46737969]
[1760822049995,63.42,186.32,186.31,5.46737969]
[1760822050209,62.7,186.32,186.31,9.62023993]
[1760822050519,62.7,186.32,186.31,5.46737969]
[1760822050717,62.7,186.32,186.31,9.62023993]
[1760822051424,62.7,186.32,186.31,8.93023993]
[1760822051592,0.72,186.34,186.31,8.93023993]
[1760822051793,0.72,186.33,186.31,8.93023993]
[1760822051994,0.72,186.33,186.31,18.88587574]
[1760822052214,0.72,186.33,186.31,22.34873598]
[1760822052410,168.26286024,186.38,186.32,3.46286024]
[1760822052612,0.72,186.37,186.32,3.46286024]
[1760822052805,0.72,186.36,186.32,3.46286024]
[1760822053007,0.72,186.35,186.33,5.3668223]
[1760822053299,168.26286024,186.38,186.33,5.3668223]
[1760822053498,0.67,186.37,186.33,5.3668223]
[1760822053724,165.47,186.38,186.34,4.12286024]
[1760822054022,165.47,186.38,186.35,0.66]
[1760822054516,164.8,186.38,186.36,0.66]
[1760822054819,62.7,186.38,186.36,0.66]
[1760822055016,62.7,186.38,186.37,5.36567044]
[1760822055222,0.67,186.4,186.37,5.36567044]
[1760822055928,0.67,186.39,186.37,5.36567044]
[1760822057210,0.67,186.4,186.37,5.36567044]
[1760822057599,62.7,186.42,186.37,19.43984654]
[1760822057807,0.67,186.41,186.37,18.77984654]
[1760822058120,0.67,186.4,186.37,18.77984654]
[1760822058512,0.67,186.39,186.37,5.36567044]
[1760822058713,4.13286024,186.41,186.37,6.02567044]
[1760822059019,0.67,186.41,186.37,19.43984654]
[1760822060021,66.16286024,186.42,186.38,4.12286024]
[1760822060022,62.7,186.42,186.38,4.12286024]
[1760822060431,0.67,186.41,186.38,0.66]
[1760822060614,62.7,186.42,186.38,0.66]
[1760822061112,66.83286024,186.42,186.39,0.66]
[1760822061298,63.37,186.42,186.39,0.66]
[1760822061625,66.83286024,186.42,186.4,5.36480686]
[1760822061808,66.16286024,186.42,186.4,5.36480686]
[1760822062008,62.7,186.46,186.41,4.12286024]
[1760822062226,62.7,186.46,186.43,3.46286024]
[1760822062523,62.7,186.46,186.43,4.12286024]
[1760822062912,62.7,186.46,186.43,3.46286024]
[1760822063115,62.7,186.46,186.44,5.36365586]
[1760822064222,62.7,186.46,186.43,3.46286024]
[1760822064405,0.67,186.45,186.41,5.36426116]
[1760822064605,0.67,186.44,186.41,5.36426116]
[1760822064801,63.37,186.46,186.43,3.46286024]
[1760822065018,62.7,186.46,186.44,3.46286024]
[1760822065610,62.7,186.46,186.43,4.12286024]
[1760822066331,62.7,186.46,186.44,5.36365586]
[1760822067222,62.7,186.45,186.43,5.36390304]
[1760822067421,63.37,186.45,186.43,5.36390304]
[1760822068121,62.7,186.45,186.43,5.36390304]
[1760822071048,62.7,186.45,186.43,6.02390304]
[1760822073003,62.7,186.44,186.43,6.02390304]
[1760822073206,62.7,186.44,186.41,18.77581674]
[1760822073403,63.37,186.44,186.41,19.43581674]
[1760822074524,62.7,186.44,186.41,19.43581674]
[1760822076032,3.46286024,186.42,186.34,0.66]
[1760822076231,3.46286024,186.37,186.34,0.66]
[1760822076434,3.46286024,186.35,186.32,19.4448862]
[1760822076730,3.46286024,186.33,186.32,5.36711034]
[1760822077031,4.13286024,186.33,186.32,5.36711034]
[1760822077416,3.46286024,186.35,186.32,6.02711034]
[1760822078712,66.16286024,186.36,186.32,6.02711034]
[1760822078911,66.83286024,186.36,186.32,6.02711034]
[1760822080833,62.7,186.36,186.33,4.12286024]
[1760822081018,62.7,186.36,186.34,0.66]
[1760822081220,62.7,186.36,186.35,0.66]
[1760822081924,62.7,186.35,186.34,3.46286024]
[1760822082128,62.7,186.35,186.34,4.12286024]
[1760822082934,62.7,186.35,186.34,9.48939453]
[1760822087945,0.67,186.38,186.34,22.90573026]
[1760822088146,0.67,186.38,186.35,3.46286024]
[1760822089452,102.1,186.41,186.35,3.46286024]
[1760822089748,0.67,186.41,186.38,3.46286024]
[1760822089947,102.77,186.41,186.39,5.36509469]
[1760822091129,102.1,186.45,186.39,22.24069166]
[1760822091328,0.67,186.44,186.4,3.46286024]
[1760822091636,0.67,186.43,186.4,3.46286024]
[1760822091948,0.67,186.43,186.41,5.36451907]
[1760822092142,102.77,186.45,186.41,22.23867698]
[1760822092351,0.67,186.44,186.41,22.23867698]
[1760822092927,102.77,186.45,186.41,22.91867698]
[1760822093126,0.67,186.44,186.41,22.91867698]
[1760822095148,102.1,186.45,186.41,22.91867698]
[1760822095650,102.77,186.45,186.41,22.91867698]
[1760822096538,102.77,186.45,186.43,5.36394357]
[1760822096737,62.7,186.44,186.43,5.36394357]
[1760822097038,68.3,186.44,186.43,5.36394357]
[1760822099044,68.97,186.44,186.43,5.36394357]
[1760822099646,5.6,186.44,186.43,9.50680381]
[1760822099846,62.7,186.48,186.43,22.91666273]
[1760822100052,62.7,186.48,186.47,3.46286024]
[1760822100954,63.37,186.48,186.45,3.46286024]
[1760822101135,63.37,186.48,186.45,5.36336819]
[1760822101335,0.67,186.47,186.45,5.36336819]
[1760822101543,0.67,186.46,186.45,5.36336819]
[1760822101843,62.7,186.48,186.45,8.82622843]
[1760822102045,63.37,186.48,186.47,3.46286024]
[1760822102240,62.7,186.48,186.47,3.46286024]
[1760822102553,63.37,186.48,186.47,3.46286024]
[1760822103054,63.37,186.48,186.45,22.23464891]
[1760822103352,0.67,186.47,186.46,3.46286024]
[1760822103853,0.67,186.47,186.45,18.77178867]
[1760822104037,0.67,186.46,186.45,5.36336819]
[1760822104237,0.67,186.46,186.44,5.3636299]
[1760822104553,0.67,186.45,186.44,5.3636299]
[1760822105455,0.67,186.45,186.41,16.87412223]
[1760822105456,63.37,186.45,186.42,18.77480956]
[1760822105643,63.37,186.45,186.43,3.46286024]
[1760822105850,63.37,186.45,186.42,22.2376698]
[1760822106951,0.7,186.44,186.42,5.3642313]
[1760822107155,0.7,186.43,186.42,5.3642313]
[1760822107651,0.7,186.43,186.41,5.36451907]
[1760822107857,63.4,186.45,186.41,5.36451907]
[1760822108053,0.7,186.44,186.41,5.36451907]
[1760822109352,0.7,186.44,186.41,22.23867698]
[1760822109558,0.7,186.44,186.41,22.90867698]
[1760822109956,62.7,186.45,186.41,22.90867698]
[1760822110158,63.4,186.45,186.41,22.90867698]
[1760822111459,164.8,186.44,186.42,3.46286024]
[1760822111757,62.7,186.43,186.42,0.67]
[1760822112746,62.7,186.47,186.42,4.13286024]
[1760822112948,62.7,186.47,186.45,3.46286024]
[1760822113459,62.7,186.47,186.46,5.36308055]
[1760822113964,62.7,186.47,186.46,8.82594079]
[1760822114169,62.7,186.47,186.46,9.49594079]
[1760822114372,62.7,186.47,186.46,5.36308055]
[1760822120559,66.84286024,186.47,186.42,13.41052595]
[1760822120751,66.84286024,186.46,186.42,18.77475725]
[1760822120960,66.16286024,186.46,186.42,18.77475725]
[1760822121160,0.68,186.45,186.42,18.77475725]
[1760822121968,3.46286024,186.43,186.39,5.36482775]
[1760822122172,3.46286024,186.43,186.31,0.1]
[1760822122173,3.46286024,186.4,186.32,22.24774644]
[1760822122349,62.7,186.39,186.35,3.46286024]
[1760822122547,62.7,186.39,186.36,0.67]
[1760822122745,62.7,186.39,186.37,0.67]
[1760822123160,62.7,186.39,186.38,5.36538255]
[1760822124169,66.84286024,186.39,186.37,5.36560482]
[1760822124362,4.14286024,186.38,186.37,5.36560482]
[1760822124956,62.7,186.37,186.35,5.36624631]
[1760822125154,4.14286024,186.36,186.31,14.18781265]
[1760822125355,62.7,186.35,186.32,22.91774644]
[1760822126246,63.38,186.35,186.32,18.7848862]
[1760822127046,62.7,186.34,186.32,18.7848862]
[1760822128174,62.7,186.34,186.32,22.24774644]
[1760822129475,62.7,186.34,186.32,18.7848862]
[1760822129973,0.68,186.33,186.32,18.7848862]
[1760822130355,0.68,186.33,186.32,5.36711034]
[1760822135977,102.1,186.34,186.32,5.36711034]
[1760822136298,102.78,186.39,186.33,4.13286024]
[1760822136494,0.68,186.38,186.34,3.46286024]
[1760822136696,0.68,186.38,186.34,0.67]
[1760822138086,0.68,186.38,186.35,5.36624631]
[1760822138490,102.1,186.39,186.35,22.91472232]
[1760822138696,0.68,186.42,186.37,3.46286024]
[1760822138899,0.68,186.42,186.38,0.67]
[1760822139204,0.68,186.41,186.38,0.67]
[1760822139697,3.46286024,186.43,186.36,3.46286024]
[1760822139886,0.68,186.4,186.36,4.13286024]
[1760822140200,0.68,186.4,186.37,5.36567044]
[1760822141202,0.68,186.4,186.37,18.77984654]
[1760822141786,102.1,186.45,186.37,18.77984654]
[1760822142100,0.68,186.43,186.39,3.46286024]
[1760822142297,0.68,186.43,186.4,6.03480686]
[1760822143006,62.7,186.44,186.41,4.13286024]
[1760822143207,62.7,186.43,186.41,4.13286024]
[1760822144310,62.7,186.43,186.42,5.3642313]
[1760822148196,102.78,186.45,186.42,5.3642313]
[1760822148496,102.1,186.45,186.42,5.3642313]
[1760822148701,0.7,186.44,186.42,5.3642313]
[1760822150910,102.1,186.45,186.42,5.3642313]
[1760822151213,102.8,186.45,186.42,5.3642313]
[1760822151600,0.7,186.44,186.42,5.3642313]
[1760822152298,168.96286024,186.43,186.33,5.3668223]
[1760822152607,165.5,186.42,186.37,3.46286024]
[1760822152806,62.7,186.41,186.38,0.69]
[1760822153219,62.7,186.41,186.36,23.57]
[1760822153220,0.7,186.4,186.36,23.57]
[1760822153611,62.7,186.41,186.36,0.69]
[1760822154324,3.46286024,186.38,186.34,5.36631193]
[1760822154529,3.46286024,186.36,186.32,5.3668461]
[1760822154705,66.16286024,186.35,186.31,5.46733461]
[1760822154911,3.46286024,186.34,186.31,5.46733461]
[1760822155624,62.7,186.35,186.31,18.88583066]
[1760822155828,62.7,186.35,186.31,19.57583066]
[1760822156817,66.16286024,186.35,186.31,19.57583066]
[1760822157127,66.86286024,186.35,186.31,19.57583066]
[1760822157319,62.7,186.35,186.32,0.69]
[1760822157929,62.7,186.35,186.31,18.88583066]
[1760822158102,62.7,186.35,186.31,19.57583066]
[1760822158306,66.16286024,186.35,186.31,19.57583066]
[1760822160545,66.86286024,186.35,186.31,19.57583066]
[1760822161032,4.16286024,186.34,186.31,18.88583066]
[1760822161414,3.46286024,186.34,186.31,18.88583066]
[1760822161815,3.46286024,186.34,186.31,19.57583066]
[1760822163522,66.16286024,186.35,186.31,19.57583066]
[1760822163717,66.86286024,186.35,186.31,19.57583066]
[1760822164730,164.8,186.34,186.31,19.57583066]
[1760822168042,168.26286024,186.34,186.31,18.88583066]
[1760822168243,168.26286024,186.34,186.31,19.54583066]
[1760822168918,3.46286024,186.32,186.31,0.1]
[1760822169122,4.13286024,186.32,186.31,0.1]
[1760822169345,168.26286024,186.33,186.31,0.1]
[1760822169512,164.8,186.33,186.31,5.46739842]
[1760822169719,165.47,186.33,186.31,5.46739842]
[1760822170239,168.93286024,186.33,186.31,5.46739842]
[1760822170746,168.93286024,186.33,186.31,0.1]
[1760822170925,4.13286024,186.32,186.31,0.1]
[1760822174630,62.5,186.29,186.26,5.46867795]
[1760822174856,62.5,186.28,186.26,5.46867795]
[1760822175752,65.96286024,186.28,186.26,5.46867795]
[1760822176228,62.5,186.28,186.26,5.46867795]
[1760822178028,62.5,186.28,186.27,4.14286024]
[1760822179138,62.5,186.32,186.29,22.88]
[1760822179428,62.5,186.32,186.31,3.46286024]
[1760822179633,62.5,186.32,186.31,4.14286024]
[1760822180144,62.5,186.32,186.31,6.04739842]
[1760822180452,62.5,186.32,186.31,9.51025866]
[1760822184230,20.15845634,186.36,186.31,49.76574681]
[1760822184431,20.15845634,186.36,186.35,3.46286024]
[1760822184750,20.15845634,186.36,186.33,0.68]
[1760822184949,20.15845634,186.36,186.34,0.68]
[1760822185145,20.15845634,186.36,186.31,19.46589447]
[1760822185450,20.86845634,186.35,186.32,3.46286024]
[1760822185850,20.15845634,186.35,186.32,3.46286024]
[1760822186146,20.15845634,186.35,186.32,4.14286024]
[1760822186346,20.15845634,186.35,186.33,5.3668223]
[1760822188241,20.15845634,186.39,186.36,22.88]
[1760822188449,20.15845634,186.39,186.38,3.46286024]
[1760822188753,20.15845634,186.39,186.36,22.88]
[1760822188754,20.15845634,186.39,186.36,3.46286024]
[1760822188955,20.15845634,186.39,186.36,4.14286024]
[1760822189253,20.15845634,186.39,186.37,3.46286024]
[1760822189839,20.15845634,186.39,186.38,5.36538255]
[1760822190458,20.15845634,186.39,186.38,8.82824279]
[1760822191036,20.15845634,186.39,186.37,5.36567044]
[1760822191237,20.15845634,186.39,186.38,3.46286024]
[1760822193055,20.15845634,186.39,186.38,8.82824279]
[1760822194265,102.1,186.41,186.38,8.82824279]
[1760822194647,102.1,186.41,186.38,9.50824279]
[1760822194964,102.1,186.41,186.38,8.82824279]
[1760822196461,102.81,186.41,186.38,8.82824279]
[1760822199242,102.1,186.41,186.39,3.46286024]
[1760822199447,0.71,186.4,186.38,5.36538255]
[1760822199745,0.71,186.39,186.38,5.36538255]
[1760822199946,0.71,186.39,186.36,5.36595836]
[1760822200140,102.1,186.41,186.36,5.36595836]
[1760822200141,158.21,186.38,186.36,5.36595836]
[1760822200355,158.21,186.38,186.35,5.36618873]
[1760822200562,0.71,186.37,186.35,5.36618873]
[1760822201068,0.71,186.37,186.33,22.246068]
[1760822201466,157.5,186.38,186.33,22.246068]
[1760822201665,0.71,186.36,186.33,22.246068]
[1760822202870,158.21,186.38,186.33,22.926068]
[1760822203047,0.71,186.37,186.33,22.926068]
[1760822204363,0.71,186.37,186.35,5.36624631]
[1760822204854,157.5,186.38,186.35,5.36624631]
[1760822205166,158.21,186.38,186.35,8.82910655]
[1760822205970,157.5,186.38,186.37,3.46286024]
[1760822206147,102.1,186.38,186.37,3.46286024]
[1760822206351,102.1,186.38,186.36,3.46286024]
[1760822206651,102.81,186.38,186.36,5.36577021]
[1760822209070,102.1,186.38,186.36,5.36577021]
[1760822209373,102.1,186.38,186.36,8.82863045]
[1760822209855,102.1,186.38,186.37,3.46286024]
[1760822210061,102.1,186.38,186.37,4.14286024]
[1760822210669,0.71,186.41,186.37,4.14286024]
[1760822210849,102.81,186.43,186.38,3.46286024]
[1760822211057,0.71,186.42,186.38,4.14286024]
[1760822211255,0.71,186.42,186.39,5.36509469]
[1760822212779,102.1,186.43,186.39,9.50795493]
[1760822212952,102.1,186.43,186.4,3.46286024]
[1760822213158,102.81,186.43,186.39,9.50795493]
[1760822214273,0.71,186.42,186.39,5.36509469]
[1760822214577,0.71,186.41,186.39,5.36509469]
[1760822215355,0.71,186.41,186.38,13.41338883]
[1760822216374,106.27286024,186.43,186.38,19.45877138]
[1760822216552,0.71,186.42,186.38,19.45877138]
[1760822216975,0.71,186.42,186.38,22.92163162]
[1760822217680,102.1,186.43,186.38,22.24163162]
[1760822217861,102.81,186.43,186.39,6.04483848]
[1760822218064,157.5,186.42,186.39,6.04483848]
[1760822219655,157.5,186.42,186.39,5.36483848]
[1760822219900,157.5,186.42,186.4,6.04479722]
[1760822220059,157.5,186.42,186.4,9.50765746]
[1760822220388,157.5,186.42,186.41,4.14286024]
[1760822220687,157.5,186.42,186.41,3.46286024]
[1760822220862,157.5,186.42,186.4,9.50765746]
[1760822221561,55.4,186.41,186.4,6.04479722]
[1760822221771,55.4,186.41,186.4,5.36479722]
[1760822221975,55.4,186.41,186.36,41.66085426]
[1760822222477,55.4,186.41,186.37,0.68]
[1760822222772,55.4,186.41,186.4,3.46286024]
[1760822223706,55.4,186.4,186.36,18.78085426]
[1760822223890,55.4,186.4,186.38,5.36538255]
[1760822224084,56.11,186.4,186.36,8.82853137]
[1760822224294,55.4,186.4,186.36,9.50853137]
[1760822225198,55.4,186.4,186.36,8.82853137]
[1760822225398,55.4,186.4,186.37,0.68]
[1760822225804,56.11,186.4,186.36,8.82853137]
[1760822225998,56.11,186.39,186.35,5.36618219]
[1760822226194,55.4,186.38,186.35,5.36618219]
[1760822226396,56.11,186.38,186.35,5.36618219]
[1760822226598,0.71,186.37,186.33,8.82939495]
[1760822226902,0.71,186.37,186.33,9.54939495]
[1760822227100,55.4,186.38,186.33,9.54939495]
[1760822227303,56.12,186.38,186.33,9.54939495]
[1760822228094,59.58286024,186.38,186.33,9.54939495]
[1760822228287,56.12,186.38,186.34,6.08624926]
[1760822228609,59.58286024,186.38,186.34,6.08624926]
[1760822229593,59.58286024,186.38,186.34,5.36624926]
[1760822229794,157.5,186.37,186.34,5.36624926]
[1760822230496,157.5,186.37,186.35,4.18286024]
[1760822230893,157.5,186.37,186.35,0.72]
[1760822231903,157.5,186.37,186.36,5.36595836]
[1760822234602,157.5,186.37,186.36,6.04595836]
[1760822235214,157.5,186.37,186.36,5.36595836]
[1760822235710,102.1,186.37,186.36,5.36595836]
[1760822237298,102.1,186.37,186.35,5.36624631]
[1760822239218,102.75,186.37,186.34,18.78287002]
[1760822239420,102.75,186.37,186.34,5.36653429]
[1760822240704,102.75,186.37,186.33,6.0468223]
[1760822241626,157.5,186.36,186.33,6.0468223]
[1760822242519,161.61286024,186.36,186.31,5.36713716]
[1760822242821,161.61286024,186.35,186.31,5.36713716]